Cogmind - Beta 15 @@@ ROGUE MODE // 2025.10.11 @ 18:12:45 Player: Jordan Result: Destroyed by G-47 Trooper with Particle Gun Performance ------------- Evolutions (2) 1000 Regions Visited (4) 800 Robots Destroyed (46) 230 Value Destroyed (1381) 1381 Prototype IDs (8) 160 Alien Tech Used (0) 0 Bonus (66) 66 TOTAL SCORE: 3637 Bonus ------- Follower Combat Kills 66 Cogmind --------- Core Integrity 0/550 Matter 300/300 Energy 100/100 System Corruption 0% Temperature Cool (18) Movement Core (350) Ox6 Location -8/Materials Parts ------- > --- POWER (1) -------- (None) > --- PROPULSION (3) --- (None) > --- UTILITY (5) ------ Large Storage Unit Improved Signal Interpreter Terrain Scan Processor Targeting Computer > --- WEAPON (2) ------- (None) > --- INVENTORY (15) --- Light Ion Engine Light Ion Engine Heavy Ion Engine Heat Sink Improved Heat Sink High-capacity Storage Unit Visual Processing Unit Sensor Array Light Armor Plating System Shield Peak State ------------ > --- POWER ------------ Heavy Ion Engine > --- PROPULSION ------- Improved Treads Improved Treads > --- UTILITY ---------- Large Storage Unit Improved Signal Interpreter Terrain Scan Processor Improved Targeting Computer > --- WEAPON ----------- Improved EM Shotgun Improved EM Shotgun > --- INVENTORY -------- Light Ion Engine Light Ion Engine Light Treads Light Treads Heat Sink Heat Sink High-capacity Storage Unit Medium Matter Pod Sensor Array Light Armor Plating System Shield EM Pulse Gun EM Pulse Gun Heavy EM Pulse Gun Improved EM Shotgun [Rating: 23] Favorites ----------- Power Reinforced Ion Engine Engine Reinforced Ion Engine Propulsion Light Treads Treads Light Treads Utility Large Storage Unit Device Terrain Scanner Storage Large Storage Unit Processor Terrain Scan Processor Protection Hardened Light Armor Plating Weapon Improved EM Shotgun Energy Gun Improved EM Shotgun Impact Weapon Great Maul Build | -11 -10 -9 -9 -8 ------- Run | Yrd Mat Mat Min Mat Slots Evolved 4 | . . 2 . 2 Power . | . . . . . Propulsion 1 | . . . . 1 Utility 3 | . . 2 . 1 Weapon . | . . . . . Parts Attached 33 | 6 10 12 . 5 Power 4 | 1 1 2 . . Engine 4 | 1 1 2 . . Core . | . . . . . Reactor . | . . . . . Propulsion 8 | 2 1 4 . 1 Treads 8 | 2 1 4 . 1 Leg . | . . . . . Wheel . | . . . . . Hover . | . . . . . Flight . | . . . . . Utility 11 | 1 3 5 . 2 Device 2 | . . 2 . . Storage 3 | 1 2 . . . Processor 5 | . 1 3 . 1 Hackware . | . . . . . Protection 1 | . . . . 1 Artifact . | . . . . . Weapon 10 | 2 5 1 . 2 Energy Gun 9 | 2 5 1 . 1 Energy Cannon . | . . . . . Ballistic Gun . | . . . . . Ballistic Cannon . | . . . . . Launcher . | . . . . . Special Weapon . | . . . . . Impact Weapon 1 | . . . . 1 Slashing Weapon . | . . . . . Piercing Weapon . | . . . . . Special Melee Weapon . | . . . . . Unidentified Prototypes 1 | . 1 . . . Parts Lost 14 | . . 1 . 13 Power 1 | . . . . 1 Propulsion 4 | . . 1 . 3 Utility 2 | . . . . 2 Weapon 7 | . . . . 7 Highest Loss Streak 6 | . . 1 . 6 To Critical Strikes . | . . . . . Average Backups 12 | . 9 14 15 12 Power 2 | . . 2 3 3 Propulsion . | . . 1 1 . Utility 6 | . 4 7 7 6 Weapon 3 | . 3 3 4 2 Tool/Special . | . . . . . Unused Backups 12 | . 2 2 . 8 Power 1 | . . . . 1 Propulsion . | . . . . . Utility 10 | . 1 2 . 7 Weapon 1 | . 1 . . . Tool/Special . | . . . . . Average Slot Usage (%) 95 | . 91 99 100 94 Engine 10 | . 12 10 11 8 Treads 23 | . 26 21 22 23 Device 1 | . . 5 . . Storage 11 | . 14 11 11 9 Processor 23 | . 8 27 33 29 Protection 2 | . . . . 6 Energy Gun 21 | . 27 22 22 15 Peak Build Rating 23 | 6 12 23 20 23 Average Rating 17 | 4 8 20 20 20 On Entrance 11 | . 6 12 20 20 Naked Turns . | . . . . . Heaviest Build 41 | 13 29 36 36 41 Greatest Support 60 | 40 40 46 40 60 Greatest Overweight (x) 7 | . 1 1 . 7 Average Overweight (x) . | . . . . . Largest Inventory Capacity 15 | 8 15 15 15 15 Average Capacity 14 | 7 13 15 15 15 Most Carried 15 | . 15 15 15 14 Average Carried 12 | . 9 14 15 12 Final Capacity 15 | 8 15 15 15 15 Final Carried 15 | . 15 15 15 10 Class Distribution -------------------- 100% | Mutant Dominant Class ---------------- Mutant | -10/Materials Mutant | -9/Materials Mutant | -9/Mines Mutant | -8/Materials Resources | -11 -10 -9 -9 -8 ----------- Run | Yrd Mat Mat Min Mat Matter Collected 685 | 241 80 299 . 65 Remotely . | . . . . . Salvage Created 1878 | . 444 781 . 653 Parts 93 | . 28 45 . 20 Haulers Intercepted 2 | . 1 1 . . Recyclers Shooed . | . . . . . Parts Field Recycled . | . . . . . Retrieved Matter . | . . . . . Parts Self-Destructed . | . . . . . Prevented . | . . . . . Kills | -11 -10 -9 -9 -8 ------- Run | Yrd Mat Mat Min Mat Combat Hostiles Destroyed 30 | . 7 12 . 11 Melee 1 | . . . . 1 Guns 16 | . 6 6 . 4 AOE 7 | . 1 5 . 1 Classes Destroyed 10 | . 7 2 . 1 Worker 3 | . 2 1 . . Builder 2 | . 1 1 . . Hauler 2 | . 1 1 . . Recycler 1 | . 1 . . . Operator 1 | . . . . 1 Watcher 7 | . 3 2 . 2 Swarmer 5 | . 5 . . . Grunt 19 | . 2 6 . 11 Duelist 1 | . . 1 . . Sentry 5 | . . 5 . . Best Kill Streak 4 | . 3 4 . 4 Combat Bots Only 4 | . 3 3 . 4 Max Kills in Single Turn 3 | . 2 3 . 1 Gunslinging . | . . . . . Exploded 3 | . 1 3 . 1 Melee 1 | . . . . 1 Uniques/NPCs Destroyed . | . . . . . Combat | -11 -10 -9 -9 -8 -------- Run | Yrd Mat Mat Min Mat Hostile Shots Fired 196 | . 23 42 . 131 Missed 53 | . 8 17 . 28 Hits 143 | . 15 25 . 103 Melee 4 | . . 4 . . Projectile 139 | . 15 21 . 103 AOE 1 | . . . . 1 Critical Strikes 6 | . . 1 . 5 Damage Taken 2460 | . 184 583 . 1693 Core 689 | . 15 118 . 556 Absorbed by Shields . | . . . . . Core Remaining (%) 88 | 100 94 . 70 . Volleys Fired 90 | . 25 31 . 34 Largest 2 | . 2 2 . 2 Hottest 90 | . 90 90 . 90 Shots Fired 164 | . 50 62 . 52 Gun 164 | . 50 62 . 52 Cannon . | . . . . . Launcher . | . . . . . Special . | . . . . . Kinetic . | . . . . . Thermal . | . . . . . Explosive . | . . . . . Electromagnetic 164 | . 50 62 . 52 Robot Hit Streak 9 | . 5 9 . 8 Robot Miss Streak 8 | . 8 3 . 4 Penetration Max . | . . . . . Secondary Targets 2 | . . 1 . 1 Max Gunslinging Chain 1 | . . 1 . 1 Shots Hit Robots 126 | . 26 53 . 47 Core Hits 74 | . 17 34 . 23 Critical Kills . | . . . . . Critical Parts Destroyed 4 | . . . . 4 Critical Strikes 4 | . . . . 4 Smash 4 | . . . . 4 Melee Attacks 6 | . . . . 6 Impact 6 | . . . . 6 Slashing . | . . . . . Piercing . | . . . . . Sneak Attacks . | . . . . . Combat Hostiles . | . . . . . Follow-up Attacks . | . . . . . Damage Inflicted 2968 | . 545 1136 . 1287 Guns 2009 | . 368 853 . 788 Cannons . | . . . . . Explosions 623 | . 177 283 . 163 Melee 331 | . . . . 331 Ramming 5 | . . . . 5 Kinetic . | . . . . . Thermal 623 | . 177 283 . 163 Explosive . | . . . . . Electromagnetic 2009 | . 368 853 . 788 Impact 331 | . . . . 331 Slashing . | . . . . . Piercing . | . . . . . Highest Corruption . | . . . . . Average Corruption . | . . . . . Corruption Purged . | . . . . . Corruption Blocked . | . . . . . Overload Shots . | . . . . . Overflow Damage 246 | . . . . 246 Projectiles . | . . . . . Explosions 8 | . . . . 8 Melee 238 | . . . . 238 Knockbacks 1 | . . . . 1 Impact 1 | . . . . 1 Kinetic . | . . . . . Secondary . | . . . . . Self-Inflicted Damage 307 | . 70 189 . 48 Shots 10 | . 3 6 . 1 Rammed 3 | . . . . 3 Targets Rammed 3 | . . . . 3 Kicked . | . . . . . Crushed . | . . . . . Highest Temperature 376 | . 90 168 . 376 Average Temperature 64 | . 26 53 . 103 Received Heat Transfer 999 | . 6 129 . 864 Effects 1 | . . . . 1 Interference 1 | . . . . 1 Siege Activations . | . . . . . Martial Activations . | . . . . . Shielding Activations . | . . . . . Robots Disrupted . | . . . . . Combat Hostiles . | . . . . . Robots Corrupted 6 | . . 1 . 5 Combat Hostiles 6 | . . 1 . 5 Parts Fried 17 | . 2 4 . 11 Impact Corruptions 5 | . . . . 5 Robots Melted . | . . . . . Combat Hostiles . | . . . . . Parts Melted . | . . . . . Heat Transferred 800 | . 250 350 . 200 Parts Sabotaged . | . . . . . Parts Stolen . | . . . . . Parts Stripped . | . . . . . Power Chain Reactions 11 | . 4 5 . 2 Alert | -11 -10 -9 -9 -8 ------- Run | Yrd Mat Mat Min Mat Maximum Alert Level 1 | . . 1 . . Low Security (%) 90 | 100 100 69 100 100 Level 1 9 | . . 30 . . Level 2 . | . . . . . Level 3 . | . . . . . Level 4 . | . . . . . Level 5 . | . . . . . High Security . | . . . . . Max Security . | . . . . . Peak Influence 295 | . 129 295 96 90 Initial 96 | . . 9 96 . Average 54 | . 51 105 38 18 Influence Increases 1178 | . 278 489 . 411 Destroy 0b10 Robot/C 640 | . 140 240 . 260 Destroy 0b10 Robot/NC 80 | . 40 25 . 15 Destroy Leader 168 | . 38 86 . 44 Allied During Kill 4 | . . . . 4 Successful Hack 17 | . 7 10 . . Disable Machine 120 | . 45 60 . 15 Destroy Structure 59 | . 8 38 . 13 Partial Spotted 15 | . . . . 15 Lose Combat Pursuer 75 | . . 30 . 45 Influence Decreases 1115 | . 256 262 249 348 Entered New Map 166 | . . 13 153 . Time Decay 799 | . 256 239 96 208 Lost Part 130 | . . 10 . 120 Lost Ally 20 | . . . . 20 Squads Dispatched 7 | . 1 1 . 5 Investigation 3 | . . 1 . 2 Extermination . | . . . . . Reinforcement 3 | . 1 . . 2 Assault . | . . . . . Garrison 1 | . . . . 1 Intercept . | . . . . . Searches Triggered . | . . . . . Construction Impeded . | . . . . . Haulers Reinforced . | . . . . . Active Scanning Responses . | . . . . . Cargo Convoy Interrupts . | . . . . . Stealth | -11 -10 -9 -9 -8 --------- Run | Yrd Mat Mat Min Mat Distress Signals 5 | . . 1 . 4 Communications Jammed . | . . . . . Distress Signals . | . . . . . Times Spotted 54 | . 12 15 . 27 Peak Tracking Total 5 | . 3 4 . 5 Tactical Retreats 3 | . . 1 . 2 Traps | -11 -10 -9 -9 -8 ------- Run | Yrd Mat Mat Min Mat Traps Triggered 3 | . 2 1 . . Indirectly . | . . . . . Trap Hack Attempts . | . . . . . Triggered . | . . . . . Disarmed . | . . . . . Reprogrammed 6 | . 6 . . . Reused . | . . . . . Traps Extracted . | . . . . . Installed . | . . . . . Triggered . | . . . . . Machines | -11 -10 -9 -9 -8 ---------- Run | Yrd Mat Mat Min Mat Machines Disabled 8 | . 3 4 . 1 Max in Single Turn 1 | . 1 1 . 1 Machines Repaired . | . . . . . Machines Dismantled . | . . . . . Machines Sabotaged . | . . . . . Overloaded Fab Kills . | . . . . . Hacking | -11 -10 -9 -9 -8 --------- Run | Yrd Mat Mat Min Mat Machines Accessed 10 | . 4 5 . 1 Terminals 9 | . 3 5 . 1 Fabricators . | . . . . . Repair Stations . | . . . . . Recycling Units 1 | . 1 . . . Scanalyzers . | . . . . . Garrison Access . | . . . . . Total Hacks 30 | . 15 12 . 3 Successful 13 | . 7 6 . . Failed 17 | . 8 6 . 3 Catastrophic 2 | . 1 . . 1 Database Lockouts . | . . . . . Manual 1 | . 1 . . . Terminals 27 | . 12 12 . 3 Fabricators . | . . . . . Repair Stations . | . . . . . Recycling Units 3 | . 3 . . . Scanalyzers . | . . . . . Garrison Access . | . . . . . Terminal Hacks 11 | . 5 6 . . Prototype ID Bank 4 | . 1 3 . . Alert Level 2 | . 1 1 . . Reprogram Traps 1 | . 1 . . . Maintenance Status 1 | . 1 . . . Registered Components 2 | . 1 1 . . Zone Layout 1 | . . 1 . . Fabricator Hacks . | . . . . . Repair Station Hacks . | . . . . . Recycling Unit Hacks 2 | . 2 . . . Report Inventory 1 | . 1 . . . Retrieve Components 1 | . 1 . . . Scanalyzer . | . . . . . Garrison Access Hacks . | . . . . . Unauthorized Hacks . | . . . . . Terminals . | . . . . . Fabricators . | . . . . . Repair Stations . | . . . . . Recycling Units . | . . . . . Scanalyzers . | . . . . . Garrison Access . | . . . . . Data Cores Recovered . | . . . . . Used . | . . . . . Hacking Detections 8 | . 4 3 . 1 Full Trace Events 1 | . . . . 1 Feedback Events . | . . . . . Feedback Blocked . | . . . . . Robot Schematics Acquired . | . . . . . Robots Built . | . . . . . Authchips . | . . . . . Time . | . . . . . Total Robot Build Rating . | . . . . . Part Schematics Acquired . | . . . . . Parts Built . | . . . . . Authchips . | . . . . . Time . | . . . . . Total Part Build Rating . | . . . . . Parts Repaired . | . . . . . Time . | . . . . . Parts Recycled . | . . . . . Recycled Matter . | . . . . . Retrieved Matter . | . . . . . Retrieved Components 3 | . 3 . . . Parts Scanalyzed . | . . . . . Part Schematics Acquired . | . . . . . Parts Damaged . | . . . . . Bothacking | -11 -10 -9 -9 -8 ------------ Run | Yrd Mat Mat Min Mat Used RIF Installer . | . . . . . Robots Hacked . | . . . . . Non-combat . | . . . . . Combat . | . . . . . Robot Hacks Applied . | . . . . . Relay Couplers Released . | . . . . . Fabnet Peak Effective % . | . . . . . Robots Rewired . | . . . . . Allies Hacked . | . . . . . Hacks Repelled . | . . . . . Allies | -11 -10 -9 -9 -8 -------- Run | Yrd Mat Mat Min Mat Total Allies 2 | . . . 2 . Largest Group 2 | . . . 2 2 Highest-Rated Group 57 | . . . 57 57 Highest-Rated Ally 31 | . . . 31 31 Total Orders . | . . . . . Ally Attacks 16 | . . . . 16 Total Damage 227 | . . . . 227 Kills 2 | . . . . 2 Allies Corrupted . | . . . . . Allies Melted . | . . . . . Intel | -11 -10 -9 -9 -8 ------- Run | Yrd Mat Mat Min Mat Active Infowar (turns) 434 | . . 434 . . Terrain 434 | . . 434 . . Robot Analysis Total . | . . . . . Derelict Logs Recovered . | . . . . . Drone Launches . | . . . . . Drone Recoveries . | . . . . . Exploration | -11 -10 -9 -9 -8 ------------- Run | Yrd Mat Mat Min Mat Turns Passed 2945 | 53 765 893 265 969 Spaces Moved 1318 | 30 391 452 166 279 Core 8 | 3 . . . 5 Treads 1310 | 27 391 452 166 274 Legs . | . . . . . Wheels . | . . . . . Hover . | . . . . . Flight . | . . . . . Fastest Speed 50 | 50 160 160 160 160 Average Speed 162 | 149 163 160 160 165 Slowest Speed 400 | 160 240 240 160 400 Overloaded Moves . | . . . . . Propulsion Burnouts . | . . . . . Robots Hopped . | . . . . . Potential Cave-ins . | . . . . . Cave-ins Triggered . | . . . . . Exploration Rate (%) 37 | 3 68 41 50 23 Regions Visited 4 Branch Regions 1 Pre-discovered Areas . | . . . . . Known Exits Taken 3 | . 1 1 1 . Unknown Exits Taken 1 | 1 . . . . Scrap Searched . | . . . . . Spaces Dug . | . . . . . Terrain Destroyed 58 | . 7 40 . 11 Melee . | . . . . . Projectile . | . . . . . AOE 58 | . 7 40 . 11 Terrain Rammed . | . . . . . Walls Destroyed . | . . . . . Machines Disabled . | . . . . . Actions | -11 -10 -9 -9 -8 --------- Run | Yrd Mat Mat Min Mat Total 1945 | 35 471 559 166 714 Wait 437 | . 12 45 1 379 Move 1314 | 29 390 451 165 279 Hop . | . . . . . Pick Up 28 | . 18 7 . 3 Fast Attach 21 | 6 8 5 . 2 Attach 14 | . 4 4 . 6 Detach 10 | . 7 3 . . Swap 5 | . 1 4 . . Drop 16 | . 6 8 . 2 Fire 90 | . 25 31 . 34 Melee 6 | . . . . 6 Ram 3 | . . . . 3 Kick . | . . . . . Crush . | . . . . . Escape Stasis . | . . . . . Rewire 1 | . . 1 . . Trap . | . . . . . Miscellaneous . | . . . . . Route ------- -11/Scrapyard -10/Materials (discovered 5 exits: *Mat x2 / *Min x2 / [*Sub]) -9/Materials (discovered 3 exits: *Mat / *Min x2) -9/Mines (discovered 2 exits: *Mat x2) -8/Materials History --------- Turn | Location | Event 4 | -11/Scrapyard | Discovered new exit (range 16) 54 | -11/Scrapyard | Entered Materials 222 | -10/Materials | Discovered new exit (range 12) 300 | -10/Materials | Build established: Mutant 438 | -10/Materials | Discovered new exit (range 16) 552 | -10/Materials | Discovered new exit (range 13) 571 | -10/Materials | Identified exit to Mines 674 | -10/Materials | Discovered exit to Mines (range 10) 782 | -10/Materials | Discovered new exit (range 16) 816 | -10/Materials | Identified exit to Materials 819 | -10/Materials | Entered another Materials area 819 | -9/Materials | Evolved 2 slots: Utility x2 1070 | -9/Materials | Discovered new exit (range 13) 1121 | -9/Materials | Identified exit to Materials 1503 | -9/Materials | Discovered new exit (range 16) 1524 | -9/Materials | Discovered new exit (range 9) 1535 | -9/Materials | Identified exit to Mines 1712 | -9/Materials | Entered Mines 1810 | -9/Mines | Discovered exit to Materials (range 14) 1951 | -9/Mines | Discovered exit to Materials (range 12) 1977 | -9/Mines | Entered Materials 1977 | -8/Materials | Accompanied by 2 allies 1977 | -8/Materials | Evolved 2 slots: Propulsion x1, Utility x1 1982 | -8/Materials | Led the pair of lost Derelicts to an unsafe place 2847 | -8/Materials | Garrison activated, responded to threat 2934 | -8/Materials | Core integrity fell below 50% 2943 | -8/Materials | Core integrity fell below 20% 2946 | -8/Materials | Destroyed by G-47 Trooper with Particle Gun Last Messages --------------- 02903_ Imp. Heat Sink fried. 02907_ G-47 Trooper suffers critical hit (Smash). 02907_ Destroyed Aluminum Leg. 02907_ G-47 Trooper system corrupted by crushing effect. 02908_ G-47 Trooper system terminally corrupted. 02908_ Imp. Heat Sink fried. 02908_ Lgt. Nuclear Core fried. 02911_ K-01 Serf collects debris. 02917_ Lgt. Treads destroyed. 02918_ K-01 Serf collects debris. 02922_ Great Maul destroyed. 02924_ K-01 Serf collects debris. 02924_ Imp. Targeting Computer destroyed. 02927_ K-01 Serf collects debris. 02932_ Slammed into G-47 Trooper. 02933_ K-01 Serf collects debris. 02939_ Slammed into G-47 Trooper. 02940_ Critical hit (Burn: +37). 02943_ Slammed into G-47 Trooper. 02944_ Critical hit (Burn: +37). Map ----- +----------------------------------------------------+ | ???# # ##???????????????????????????????? | | ???# # ##???????????????????????????????? | | ???# !/ " % ##???????????????????????????????? | | ???# / "%! ##???????????????????????????????? | | ???#] / !" "#??????????#????????????????????? | | ???# ### ##????????? #????????????????????? | | ???# #?# #?????????" #????????????????????? | | ???# #?# #???????? #????????????????????? | | ???# [ = #?# #???????? ?????????????????????? | | ???##########?# #???????? ??????????????????????? | | ??????????????#!#???????" ??????????????????????? | | ??????????????#%#??????? ???????????????????????? | | ???????????####+########+###?????????????????????? | | ???????????# # #?????????????????????? | | ???????????# T #= T #?????????????????????? | | ???????????# %/%"" #?????????????????????? | | ???????????# #=% k#?????????????????????? | | ???????????# """ """ # #?????????????????????? | | ???????????# """ """ ## ##?????????????????????? | | ???????????# """ """ ##m #??????????????????????? | | ???????????# ## #??????????????????????? | | ???????????############ #??????????????????????? | | ??????????????????????# #??????????????????????? | | ??????????????????????# gg#??????????????????????? | | ?????????????????###### %#??????????????????????? | | ?????????? g@#??????????????????????? | | ?????????? a t + ?????????????????????? | | ?????????? # ???????????????????? | | ???????????############ # "?????????????????? | | ??????????????????????# #? """???????????????? | | ??????????????????????# #??#####???????????????? | | ??????????????????????+ #??????????????????????? | | ??????????????????????# #??????????????????????? | | ??????????????????????# #??????????????????????? | | ??????????????????????# #??????????????????????? | | ?????????????????????? ??????????????????????? | | ?????????????????????? ??????????????????????? | | ?????????????????????? " ??????????????????????? | | ?????????????????????? ??????????????????????? | | ?????????????????????# ? ???????????????????????? | | ???????????????????????#?#???????????????????????? | | ?????????????????????????????????????????????????? | | ?????????????????????????????????????????????????? | | ?????????????????????????????????????????????????? | | ?????????????????????????????????????????????????? | | ?????????????????????????????????????????????????? | | ?????????????????????????????????????????????????? | | ?????????????????????????????????????????????????? | | ?????????????????????????????????????????????????? | | ?????????????????????????????????????????????????? | +----------------------------------------------------+ Best States ------------- Heat Dissipation 38 Energy Generation 14 Energy Capacity 280 Matter Stores 300 Matter Capacity 300 Sight Range 16 Terrain Scan Range 14 Terrain Scan Density 85 Armor Coverage 150 Evasion (%) 40 Targeting Accuracy 11 Recoil Reduction 3 Item Schematics ----------------- None Robot Schematics ------------------ None Fabricated ------------ Nothing Repaired ---------- Nothing Alien Tech Used ----------------- None Achievements -------------- Troublemaker Challenges ------------ None Game ------ Seed DispersionSpikedThruster Manual? 0 Play Time 00:38:14 Cumulative 7.6 hours Start 2025.10.11 @ 15:43:35 End 2025.10.11 @ 18:12:45 Sessions 3 Manual Loads 0 Difficulty Rogue Special Mode None Game No. 11 Rogue 11 Adventurer 0 Explorer 0 Win Type - Total 0 Types 0/0/0/0/0/0/0/0/0/0 Lore% 5 Gallery% 8 Achievement% 12 Wizard Run 0 Options --------- Layout 2 ASCII 0 Keyboard 1 Movement Numpad Keybinds 0 Fullscreen 1 Font 32/SmallcapsGlow Map View 130x44 Zoom Use 16% Tactical HUD 1 Map Filters NONE Filters NONE Steam 1 RUN: 9bf1c2a5-34a7-42c5-99a0-a67d89836b9b